Publisher Label,Publisher URI,"Payment Date","Organisational Unit","Beneficiary Name","Purpose","Amount (£)","Irrecoverable VAT Amount (£)","Merchant Category Code"
"Wolverhampton City Council","http://opendatacommunities.org/id/metropolitan-district-council/wolverhampton","09/11/2016","Pension Operations","Accurate Data Services Limited","Computing - Maint Agreements","2626.40","0.00","5045"
"Wolverhampton City Council","http://opendatacommunities.org/id/metropolitan-district-council/wolverhampton","29/11/2016","Governance","ADARE LTD","Comms - Postage","2683.49","0.00","4812"
"Wolverhampton City Council","http://opendatacommunities.org/id/metropolitan-district-council/wolverhampton","29/11/2016","Governance","ADARE LTD","Comms - Postage","1446.48","0.00","4812"
"Wolverhampton City Council","http://opendatacommunities.org/id/metropolitan-district-council/wolverhampton","29/11/2016","Governance","ADARE LTD","Comms - Postage","1998.10","0.00","4812"
"Wolverhampton City Council","http://opendatacommunities.org/id/metropolitan-district-council/wolverhampton","29/11/2016","Governance","ADARE LTD","Comms - Postage","4645.88","0.00","4812"
"Wolverhampton City Council","http://opendatacommunities.org/id/metropolitan-district-council/wolverhampton","19/10/2016","Governance","ADARE LTD","Comms - Postage","5173.08","0.00","4812"
"Wolverhampton City Council","http://opendatacommunities.org/id/metropolitan-district-council/wolverhampton","15/11/2016","Governance","ADARE LTD","Comms - Postage","2788.51","0.00","4812"
"Wolverhampton City Council","http://opendatacommunities.org/id/metropolitan-district-council/wolverhampton","16/11/2016","Pension Operations","Barnett Waddingham LLP","Actuarial Fees","500.00","0.00","6012"
"Wolverhampton City Council","http://opendatacommunities.org/id/metropolitan-district-council/wolverhampton","09/11/2016","Pension Operations","BIRMINGHAM CITY COUNCIL","Comms - Postage","3213.03","0.00","9399"
"Wolverhampton City Council","http://opendatacommunities.org/id/metropolitan-district-council/wolverhampton","06/10/2016","Pension Operations","BIRMINGHAM CITY COUNCIL","Comms - Postage","2589.52","0.00","9399"
"Wolverhampton City Council","http://opendatacommunities.org/id/metropolitan-district-council/wolverhampton","30/11/2016","Pension Operations","BIRMINGHAM CITY COUNCIL","Comms - Postage","3054.54","0.00","9399"
"Wolverhampton City Council","http://opendatacommunities.org/id/metropolitan-district-council/wolverhampton","09/12/2016","Pension Operations","BIRMINGHAM CITY COUNCIL","Comms - Postage","2671.01","0.00","9399"
"Wolverhampton City Council","http://opendatacommunities.org/id/metropolitan-district-council/wolverhampton","12/10/2016","Pension Operations","BIRMINGHAM CITY COUNCIL","Comms - Postage","2669.04","0.00","9399"
"Wolverhampton City Council","http://opendatacommunities.org/id/metropolitan-district-council/wolverhampton","12/10/2016","Pension Operations","BIRMINGHAM CITY COUNCIL","Comms - Postage","2714.95","0.00","9399"
"Wolverhampton City Council","http://opendatacommunities.org/id/metropolitan-district-council/wolverhampton","13/10/2016","Pension Operations","Branwell Ford","Staff Advertising Costs","5129.40","0.00","7361"
"Wolverhampton City Council","http://opendatacommunities.org/id/metropolitan-district-council/wolverhampton","13/10/2016","Pension Operations","Branwell Ford","Staff Advertising Costs","1350.00","0.00","7361"
"Wolverhampton City Council","http://opendatacommunities.org/id/metropolitan-district-council/wolverhampton","25/11/2016","Pension Operations","Brook Street (UK) Ltd","Agency Staff","516.89","0.00","7361"
"Wolverhampton City Council","http://opendatacommunities.org/id/metropolitan-district-council/wolverhampton","13/01/2017","Pension Operations","Brook Street (UK) Ltd","Agency Staff","595.46","0.00","7361"
"Wolverhampton City Council","http://opendatacommunities.org/id/metropolitan-district-council/wolverhampton","20/12/2016","Pension Operations","Brook Street (UK) Ltd","Agency Staff","551.81","0.00","7361"
"Wolverhampton City Council","http://opendatacommunities.org/id/metropolitan-district-council/wolverhampton","20/12/2016","Pension Operations","Brook Street (UK) Ltd","Agency Staff","523.87","0.00","7361"
"Wolverhampton City Council","http://opendatacommunities.org/id/metropolitan-district-council/wolverhampton","20/12/2016","Pension Operations","Brook Street (UK) Ltd","Agency Staff","523.87","0.00","7361"
"Wolverhampton City Council","http://opendatacommunities.org/id/metropolitan-district-council/wolverhampton","15/12/2016","Pension Operations","Brook Street (UK) Ltd","Agency Staff","516.89","0.00","7361"
"Wolverhampton City Council","http://opendatacommunities.org/id/metropolitan-district-council/wolverhampton","27/10/2016","LGPS Central","brownejacobson","Services - Professional Fees","929.52","0.00","8111"
"Wolverhampton City Council","http://opendatacommunities.org/id/metropolitan-district-council/wolverhampton","21/11/2016","LGPS Central","brownejacobson","Services - Professional Fees","1543.10","0.00","8111"
"Wolverhampton City Council","http://opendatacommunities.org/id/metropolitan-district-council/wolverhampton","30/11/2016","Pension Operations","CIVICA UK LIMITED","Computing - Maint Agreements","59171.63","0.00","5045"
"Wolverhampton City Council","http://opendatacommunities.org/id/metropolitan-district-council/wolverhampton","20/12/2016","Financial Services","Deloitte LLP","Services - Professional Fees","67102.00","0.00","8999"
"Wolverhampton City Council","http://opendatacommunities.org/id/metropolitan-district-council/wolverhampton","23/12/2016","Governance","DTZ DTL LTD CLIENT AC:COMMONRECEIPTS","Rent","29221.88","0.00","7523"
"Wolverhampton City Council","http://opendatacommunities.org/id/metropolitan-district-council/wolverhampton","13/10/2016","Governance","DTZ DTL LTD CLIENT AC:COMMONRECEIPTS","Insurances - Premises","1846.34","0.00","7523"
"Wolverhampton City Council","http://opendatacommunities.org/id/metropolitan-district-council/wolverhampton","13/10/2016","Governance","DTZ DTL LTD CLIENT AC:COMMONRECEIPTS","Service Charges","2003.18","0.00","7523"
"Wolverhampton City Council","http://opendatacommunities.org/id/metropolitan-district-council/wolverhampton","15/12/2016","Governance","DTZ DTL LTD CLIENT AC:COMMONRECEIPTS","Rent","1276.68","0.00","7523"
"Wolverhampton City Council","http://opendatacommunities.org/id/metropolitan-district-council/wolverhampton","27/10/2016","Pension Operations","Dun & Bradstreet Ltd","Services - Professional Fees","1658.88","0.00","8999"
"Wolverhampton City Council","http://opendatacommunities.org/id/metropolitan-district-council/wolverhampton","21/11/2016","Financial Services","Duncan Cunningham Icon Reporting Services","Services - Consultants","1263.35","0.00","5045"
"Wolverhampton City Council","http://opendatacommunities.org/id/metropolitan-district-council/wolverhampton","09/11/2016","Investments Fund Account","Eames Consulting Group LLP","Staff Advertising Costs","17523.72","0.00","8299"
"Wolverhampton City Council","http://opendatacommunities.org/id/metropolitan-district-council/wolverhampton","02/11/2016","Governance","EMB Excellence Ltd","Services - Professional Fees","615.30","0.00","8999"
"Wolverhampton City Council","http://opendatacommunities.org/id/metropolitan-district-council/wolverhampton","05/01/2017","LGPS Central","Eversheds LLP","Services - Professional Fees","15100.00","0.00","8111"
"Wolverhampton City Council","http://opendatacommunities.org/id/metropolitan-district-council/wolverhampton","03/01/2017","Governance","Eversheds LLP","Services - Professional Fees","1121.50","0.00","8111"
"Wolverhampton City Council","http://opendatacommunities.org/id/metropolitan-district-council/wolverhampton","06/12/2016","LGPS Central","Eversheds LLP","Services - Professional Fees","1165.50","0.00","8111"
"Wolverhampton City Council","http://opendatacommunities.org/id/metropolitan-district-council/wolverhampton","02/12/2016","LGPS Central","Eversheds LLP","Services - Professional Fees","4743.50","0.00","8111"
"Wolverhampton City Council","http://opendatacommunities.org/id/metropolitan-district-council/wolverhampton","12/10/2016","LGPS Central","Eversheds LLP","Services - Professional Fees","5000.00","0.00","8111"
"Wolverhampton City Council","http://opendatacommunities.org/id/metropolitan-district-council/wolverhampton","13/10/2016","LGPS Central","Eversheds LLP","Services - Professional Fees","12049.25","0.00","8111"
"Wolverhampton City Council","http://opendatacommunities.org/id/metropolitan-district-council/wolverhampton","14/12/2016","LGPS Central","Eversheds LLP","Services - Professional Fees","5000.00","0.00","8111"
"Wolverhampton City Council","http://opendatacommunities.org/id/metropolitan-district-council/wolverhampton","14/12/2016","LGPS Central","Eversheds LLP","Services - Professional Fees","1752.50","0.00","8111"
"Wolverhampton City Council","http://opendatacommunities.org/id/metropolitan-district-council/wolverhampton","14/12/2016","LGPS Central","Eversheds LLP","Services - Professional Fees","8580.00","0.00","8111"
"Wolverhampton City Council","http://opendatacommunities.org/id/metropolitan-district-council/wolverhampton","14/12/2016","LGPS Central","Eversheds LLP","Services - Professional Fees","12529.50","0.00","8111"
"Wolverhampton City Council","http://opendatacommunities.org/id/metropolitan-district-council/wolverhampton","14/12/2016","LGPS Central","Eversheds LLP","Services - Professional Fees","1010.50","0.00","8111"
"Wolverhampton City Council","http://opendatacommunities.org/id/metropolitan-district-council/wolverhampton","14/12/2016","LGPS Central","Eversheds LLP","Services - Professional Fees","2889.50","0.00","8111"
"Wolverhampton City Council","http://opendatacommunities.org/id/metropolitan-district-council/wolverhampton","22/11/2016","Pension Operations","Eversheds LLP","Services - Professional Fees","1500.00","0.00","8111"
"Wolverhampton City Council","http://opendatacommunities.org/id/metropolitan-district-council/wolverhampton","23/11/2016","Pension Operations","Eversheds LLP","Services - Professional Fees","1750.00","0.00","8111"
"Wolverhampton City Council","http://opendatacommunities.org/id/metropolitan-district-council/wolverhampton","15/12/2016","LGPS Central","Eversheds LLP","Services - Professional Fees","19895.00","0.00","8111"
"Wolverhampton City Council","http://opendatacommunities.org/id/metropolitan-district-council/wolverhampton","16/11/2016","Executive","Financial Reporting Council","Subscriptions","7974.74","0.00","8999"
"Wolverhampton City Council","http://opendatacommunities.org/id/metropolitan-district-council/wolverhampton","26/10/2016","Financial Services","Grant Thornton UK LLP","Services - Professional Fees","12155.00","0.00","8931"
"Wolverhampton City Council","http://opendatacommunities.org/id/metropolitan-district-council/wolverhampton","20/12/2016","Financial Services","Grant Thornton UK LLP","Services - Professional Fees","12155.00","0.00","8931"
"Wolverhampton City Council","http://opendatacommunities.org/id/metropolitan-district-council/wolverhampton","20/12/2016","Investment - Revenue","HSBC BANK PLC/HSBC SECURITY SERVICES","Services - Professional Fees","6855.00","0.00","6012"
"Wolverhampton City Council","http://opendatacommunities.org/id/metropolitan-district-council/wolverhampton","16/12/2016","Investment - Revenue","HSBC BANK PLC/HSBC SECURITY SERVICES","Services - Professional Fees","3355.00","0.00","6012"
"Wolverhampton City Council","http://opendatacommunities.org/id/metropolitan-district-council/wolverhampton","28/10/2016","Investment - Revenue","HSBC BANK PLC/HSBC SECURITY SERVICES","Services - Professional Fees","2731.00","0.00","6012"
"Wolverhampton City Council","http://opendatacommunities.org/id/metropolitan-district-council/wolverhampton","20/12/2016","Investment - Revenue","HYMANS ROBERTSON LLP","Services - Professional Fees","7891.00","0.00","6012"
"Wolverhampton City Council","http://opendatacommunities.org/id/metropolitan-district-council/wolverhampton","20/12/2016","Financial Services","HYMANS ROBERTSON LLP","Services - Professional Fees","22891.00","0.00","6012"
"Wolverhampton City Council","http://opendatacommunities.org/id/metropolitan-district-council/wolverhampton","21/10/2016","Financial Services","HYMANS ROBERTSON LLP","Services - Professional Fees","5891.00","0.00","6012"
"Wolverhampton City Council","http://opendatacommunities.org/id/metropolitan-district-council/wolverhampton","19/10/2016","Financial Services","HYMANS ROBERTSON LLP","Services - Professional Fees","7891.00","0.00","6012"
"Wolverhampton City Council","http://opendatacommunities.org/id/metropolitan-district-council/wolverhampton","30/11/2016","Financial Services","HYMANS ROBERTSON LLP","Services - Professional Fees","5891.00","0.00","6012"
"Wolverhampton City Council","http://opendatacommunities.org/id/metropolitan-district-council/wolverhampton","03/01/2017","Governance","Kaizen Consultants","Printing","695.00","0.00","2741"
"Wolverhampton City Council","http://opendatacommunities.org/id/metropolitan-district-council/wolverhampton","12/10/2016","Governance","Kaizen Consultants","Stationery","787.47","0.00","2741"
"Wolverhampton City Council","http://opendatacommunities.org/id/metropolitan-district-council/wolverhampton","12/10/2016","Governance","Kaizen Consultants","Stationery","1192.63","0.00","2741"
"Wolverhampton City Council","http://opendatacommunities.org/id/metropolitan-district-council/wolverhampton","12/10/2016","Governance","Kaizen Consultants","Stationery","589.00","0.00","2741"
"Wolverhampton City Council","http://opendatacommunities.org/id/metropolitan-district-council/wolverhampton","12/10/2016","Governance","Kaizen Consultants","Stationery","1060.00","0.00","2741"
"Wolverhampton City Council","http://opendatacommunities.org/id/metropolitan-district-council/wolverhampton","12/10/2016","Governance","Kaizen Consultants","Stationery","525.00","0.00","2741"
"Wolverhampton City Council","http://opendatacommunities.org/id/metropolitan-district-council/wolverhampton","12/10/2016","Governance","Kaizen Consultants","Stationery","693.88","0.00","2741"
"Wolverhampton City Council","http://opendatacommunities.org/id/metropolitan-district-council/wolverhampton","20/12/2016","Governance","Kaizen Consultants","Stationery","1137.00","0.00","2741"
"Wolverhampton City Council","http://opendatacommunities.org/id/metropolitan-district-council/wolverhampton","14/12/2016","Governance","Kaizen Consultants","Stationery","1891.16","0.00","2741"
"Wolverhampton City Council","http://opendatacommunities.org/id/metropolitan-district-council/wolverhampton","09/11/2016","Financial Services","Kaplan Financial","Training Expenses","551.67","0.00","8299"
"Wolverhampton City Council","http://opendatacommunities.org/id/metropolitan-district-council/wolverhampton","19/10/2016","Governance","KONICA MINOLTA BUS.SOLUTIONS(UK)LTD.","Printing","1916.70","0.00","2741"
"Wolverhampton City Council","http://opendatacommunities.org/id/metropolitan-district-council/wolverhampton","15/12/2016","Governance","KONICA MINOLTA BUS.SOLUTIONS(UK)LTD.","Printing","3068.42","0.00","2741"
"Wolverhampton City Council","http://opendatacommunities.org/id/metropolitan-district-council/wolverhampton","19/10/2016","Governance","KONICA MINOLTA BUS.SOLUTIONS(UK)LTD.","Printing","1916.70","0.00","2741"
"Wolverhampton City Council","http://opendatacommunities.org/id/metropolitan-district-council/wolverhampton","19/10/2016","Governance","KRCS GROUP PLC","Computing - Purchase of Hardware","686.24","0.00","5072"
"Wolverhampton City Council","http://opendatacommunities.org/id/metropolitan-district-council/wolverhampton","01/11/2016","Governance","LexisNexis","Computing - Consumables","3600.00","0.00","5045"
"Wolverhampton City Council","http://opendatacommunities.org/id/metropolitan-district-council/wolverhampton","20/12/2016","Investments Fund Account","LINEDATA LIMITED","Computing - Maint Agreements","55877.03","0.00","5045"
"Wolverhampton City Council","http://opendatacommunities.org/id/metropolitan-district-council/wolverhampton","29/11/2016","Investments Fund Account","LINEDATA LIMITED","Computing - Maint Agreements","55877.03","0.00","5045"
"Wolverhampton City Council","http://opendatacommunities.org/id/metropolitan-district-council/wolverhampton","21/11/2016","Investments Fund Account","LINEDATA LIMITED","Computing - Maint Agreements","55877.03","0.00","5045"
"Wolverhampton City Council","http://opendatacommunities.org/id/metropolitan-district-council/wolverhampton","22/11/2016","Executive","Local Government Association","Subscriptions","8100.00","0.00","9399"
"Wolverhampton City Council","http://opendatacommunities.org/id/metropolitan-district-council/wolverhampton","06/10/2016","Investments Fund Account","LONDON STOCK EXCHANGE PLC","Services - General Licences","580.99","0.00","6012"
"Wolverhampton City Council","http://opendatacommunities.org/id/metropolitan-district-council/wolverhampton","18/11/2016","Investments Fund Account","LONDON STOCK EXCHANGE PLC","Services - General Licences","580.99","0.00","6012"
"Wolverhampton City Council","http://opendatacommunities.org/id/metropolitan-district-council/wolverhampton","29/11/2016","Financial Services","MERCER LIMITED","Services - Professional Fees","14000.00","0.00","6012"
"Wolverhampton City Council","http://opendatacommunities.org/id/metropolitan-district-council/wolverhampton","15/11/2016","Governance","MIDWEST ELECTRICAL SERVICES LTD","R&M - Departmental planned (external)","627.38","0.00","4900"
"Wolverhampton City Council","http://opendatacommunities.org/id/metropolitan-district-council/wolverhampton","15/11/2016","Governance","MIDWEST ELECTRICAL SERVICES LTD","R&M - Departmental planned (external)","815.00","0.00","4900"
"Wolverhampton City Council","http://opendatacommunities.org/id/metropolitan-district-council/wolverhampton","20/12/2016","Governance","Pension Careers","Staff Advertising Costs","800.00","0.00","7311"
"Wolverhampton City Council","http://opendatacommunities.org/id/metropolitan-district-council/wolverhampton","30/11/2016","Governance","Pension Careers","Staff Advertising Costs","500.00","0.00","7311"
"Wolverhampton City Council","http://opendatacommunities.org/id/metropolitan-district-council/wolverhampton","09/11/2016","Investment - Revenue","Pinsent Masons","Services - Professional Fees","1177.53","0.00","8111"
"Wolverhampton City Council","http://opendatacommunities.org/id/metropolitan-district-council/wolverhampton","05/12/2016","Investment - Revenue","Portfolio Evalutaion Limited","Services - Professional Fees","2925.00","0.00","8999"
"Wolverhampton City Council","http://opendatacommunities.org/id/metropolitan-district-council/wolverhampton","29/11/2016","Investment - Revenue","Portfolio Evalutaion Limited","Services - Professional Fees","13335.00","0.00","8999"
"Wolverhampton City Council","http://opendatacommunities.org/id/metropolitan-district-council/wolverhampton","19/12/2016","LGPS Central","PRICE WATERHOUSE COOPERS","Services - Professional Fees","12695.00","0.00","8931"
"Wolverhampton City Council","http://opendatacommunities.org/id/metropolitan-district-council/wolverhampton","20/12/2016","LGPS Central","PRICE WATERHOUSE COOPERS","Services - Professional Fees","87464.00","0.00","8931"
"Wolverhampton City Council","http://opendatacommunities.org/id/metropolitan-district-council/wolverhampton","08/11/2016","Pension Operations","PRICE WATERHOUSE COOPERS","Services - Professional Fees","3177.00","0.00","8931"
"Wolverhampton City Council","http://opendatacommunities.org/id/metropolitan-district-council/wolverhampton","08/11/2016","Pension Operations","PRICE WATERHOUSE COOPERS","Services - Professional Fees","3221.00","0.00","8931"
"Wolverhampton City Council","http://opendatacommunities.org/id/metropolitan-district-council/wolverhampton","08/11/2016","Pension Operations","PRICE WATERHOUSE COOPERS","Services - Professional Fees","10000.00","0.00","8931"
"Wolverhampton City Council","http://opendatacommunities.org/id/metropolitan-district-council/wolverhampton","02/12/2016","LGPS Central","PRICE WATERHOUSE COOPERS","Services - Professional Fees","118220.00","0.00","8931"
"Wolverhampton City Council","http://opendatacommunities.org/id/metropolitan-district-council/wolverhampton","20/12/2016","LGPS Central","R D Summers","Services - Professional Fees","1500.00","0.00","8999"
"Wolverhampton City Council","http://opendatacommunities.org/id/metropolitan-district-council/wolverhampton","06/01/2017","Governance","ROYAL MAIL GROUP PLC","Comms - Postage","673.28","0.00","9402"
"Wolverhampton City Council","http://opendatacommunities.org/id/metropolitan-district-council/wolverhampton","02/12/2016","Governance","ROYAL MAIL GROUP PLC","Comms - Postage","693.91","0.00","9402"
"Wolverhampton City Council","http://opendatacommunities.org/id/metropolitan-district-council/wolverhampton","20/12/2016","Governance","ROYAL MAIL GROUP PLC","Comms - Postage","2629.20","0.00","9402"
"Wolverhampton City Council","http://opendatacommunities.org/id/metropolitan-district-council/wolverhampton","29/11/2016","Governance","ROYAL MAIL GROUP PLC","Comms - Postage","537.15","0.00","9402"
"Wolverhampton City Council","http://opendatacommunities.org/id/metropolitan-district-council/wolverhampton","20/12/2016","Governance","Severn Valley Windows & Door","R&M - Departmental response (Internal)","856.50","0.00","5231"
"Wolverhampton City Council","http://opendatacommunities.org/id/metropolitan-district-council/wolverhampton","20/12/2016","Governance","South West Councils","Conference Expenses","1074.00","0.00","9399"
"Wolverhampton City Council","http://opendatacommunities.org/id/metropolitan-district-council/wolverhampton","09/11/2016","Pension Operations","Stoneleigh","Computing - Maint Agreements","2635.00","0.00","5045"
"Wolverhampton City Council","http://opendatacommunities.org/id/metropolitan-district-council/wolverhampton","21/10/2016","Pension Operations","SWIFT BUSINESS SOLUTIONS LTD","Equipment - Purchase","981.00","0.00","5021"
"Wolverhampton City Council","http://opendatacommunities.org/id/metropolitan-district-council/wolverhampton","21/10/2016","Pension Operations","SWIFT BUSINESS SOLUTIONS LTD","Equipment - Purchase","1250.00","0.00","5021"
"Wolverhampton City Council","http://opendatacommunities.org/id/metropolitan-district-council/wolverhampton","30/11/2016","Investment - Revenue","Tedmoor Consultancy Ltd","Investment Management Expenses","6950.00","0.00","8999"
"Wolverhampton City Council","http://opendatacommunities.org/id/metropolitan-district-council/wolverhampton","09/11/2016","Governance","Thompson Group Services","R&M - Departmental planned (external)","894.40","0.00","1520"
"Wolverhampton City Council","http://opendatacommunities.org/id/metropolitan-district-council/wolverhampton","09/11/2016","Pension Operations","UK MAIL LTD/BUSINESSPOST INTERNATNL.","Comms - Postage","2292.06","0.00","4215"
"Wolverhampton City Council","http://opendatacommunities.org/id/metropolitan-district-council/wolverhampton","09/12/2016","Pension Operations","UK MAIL LTD/BUSINESSPOST INTERNATNL.","Comms - Postage","707.73","0.00","4215"
"Wolverhampton City Council","http://opendatacommunities.org/id/metropolitan-district-council/wolverhampton","20/12/2016","Pension Operations","UK MAIL LTD/BUSINESSPOST INTERNATNL.","Comms - Postage","803.27","0.00","4215"
"Wolverhampton City Council","http://opendatacommunities.org/id/metropolitan-district-council/wolverhampton","21/11/2016","Pension Operations","Wilmington Millennium","Computing - Maint Agreements","6020.00","0.00","5045"
"Wolverhampton City Council","http://opendatacommunities.org/id/metropolitan-district-council/wolverhampton","18/11/2016","Pension Operations","Yoo","Agency Staff","2532.40","0.00","7361"
"Wolverhampton City Council","http://opendatacommunities.org/id/metropolitan-district-council/wolverhampton","17/01/2017","Pension Operations","Yoo","Agency Staff","1412.18","0.00","7361"
"Wolverhampton City Council","http://opendatacommunities.org/id/metropolitan-district-council/wolverhampton","20/12/2016","Pension Operations","Yoo","Agency Staff","2241.74","0.00","7361"
"Wolverhampton City Council","http://opendatacommunities.org/id/metropolitan-district-council/wolverhampton","19/12/2016","Pension Operations","Yoo","Agency Staff","2661.63","0.00","7361"
"Wolverhampton City Council","http://opendatacommunities.org/id/metropolitan-district-council/wolverhampton","29/11/2016","Pension Operations","Yoo","Agency Staff","2349.55","0.00","7361"
"Wolverhampton City Council","http://opendatacommunities.org/id/metropolitan-district-council/wolverhampton","25/10/2016","Pension Operations","Yoo","Agency Staff","3354.27","0.00","7361"
"Wolverhampton City Council","http://opendatacommunities.org/id/metropolitan-district-council/wolverhampton","14/12/2016","Pension Operations","Yoo","Agency Staff","3867.94","0.00","7361"
"Wolverhampton City Council","http://opendatacommunities.org/id/metropolitan-district-council/wolverhampton","02/12/2016","Pension Operations","Yoo","Agency Staff","2572.13","0.00","7361"
